Cogmind - Beta 11.1 @@@ ROGUE MODE // 2022.08.29 @ 22:18:34 Player: NoobOne Result: Destroyed by H-61 Shepherd with Heavy Assault Cannon Performance ------------- Evolutions (2) 1000 Regions Visited (3) 600 Robots Destroyed (51) 255 Value Destroyed (1450) 1450 Prototype IDs (2) 40 Alien Tech Used (0) 0 Bonus (235) 235 TOTAL SCORE: 3580 Bonus ------- Pacifist 200 High Alert Combat Kills 35 Cogmind --------- Core Integrity 0/550 Matter 2/300 Energy 100/100 System Corruption 1% Temperature Cool (0) Movement Treading (170) Location -8/Materials Parts ------- > --- POWER (3) -------- (None) > --- PROPULSION (2) --- Armored Treads > --- UTILITY (4) ------ Small Storage Unit > --- WEAPON (2) ------- Grenade Launcher Heavy Missile Launcher > --- INVENTORY (8) ---- Light Armor Plating Heavy Laser Flak Cannon Peak State ------------ > --- POWER ------------ Improved Deuterium Engine Improved Deuterium Engine Improved Deuterium Engine > --- PROPULSION ------- Improved Aluminum Leg Improved Aluminum Leg > --- UTILITY ---------- Small Storage Unit Large Battery Weapon Shielding > --- WEAPON ----------- Improved Light Cannon Heavy Missile Launcher > --- INVENTORY -------- Light Armor Plating Heavy Laser Flak Cannon Grenade Launcher Heavy Missile Launcher Heavy Missile Launcher Heavy Missile Launcher [Rating: 27] Favorites ----------- Power Ion Engine Engine Ion Engine Propulsion Light Treads Treads Light Treads Leg Improved Aluminum Leg Utility Small Storage Unit Device Cooling System Storage Small Storage Unit Protection Weapon Shielding Weapon EM Pulse Gun Energy Gun EM Pulse Gun Ballistic Gun Assault Rifle Ballistic Cannon Light Cannon Launcher Grenade Launcher Build | -11 -10 -9 -8 ------- Run | Scr Mat Mat Mat Slots Evolved 4 | . . 2 2 Power 2 | . . 1 1 Propulsion . | . . . . Utility 2 | . . 1 1 Weapon . | . . . . Parts Attached 30 | 6 1 5 18 Power 7 | 1 . 2 4 Engine 7 | 1 . 2 4 Core . | . . . . Reactor . | . . . . Propulsion 6 | 2 . . 4 Treads 4 | 2 . . 2 Leg 2 | . . . 2 Wheel . | . . . . Hover . | . . . . Flight . | . . . . Utility 5 | 1 1 1 2 Device 2 | . . 1 1 Storage 2 | 1 1 . . Processor . | . . . . Hackware . | . . . . Protection 1 | . . . 1 Artifact . | . . . . Weapon 12 | 2 . 2 8 Energy Gun 2 | 1 . 1 . Energy Cannon . | . . . . Ballistic Gun 1 | 1 . . . Ballistic Cannon 2 | . . 1 1 Launcher 7 | . . . 7 Special Weapon . | . . . . Impact Weapon . | . . . . Slashing Weapon . | . . . . Piercing Weapon . | . . . . Special Melee Weapon . | . . . . Unidentified Prototypes . | . . . . Parts Lost 21 | . . 2 19 Power 6 | . . 1 5 Propulsion 5 | . . . 5 Utility 4 | . . . 4 Weapon 6 | . . 1 5 Highest Loss Streak 13 | . . 1 13 To Critical Strikes . | . . . . Average Slot Usage (%) 92 | . 98 97 83 Engine 19 | . 14 19 22 Treads 17 | . 28 22 9 Leg 2 | . . . 5 Device 8 | . . 10 10 Storage 20 | . 26 22 17 Energy Gun 8 | . 14 11 2 Ballistic Gun 4 | . 14 3 . Ballistic Cannon 6 | . . 7 9 Launcher 1 | . . . 4 Naked Turns . | . . . . Heaviest Build 50 | 12 15 25 50 Greatest Support 40 | 40 40 40 40 Greatest Overweight (x) 3 | . . . 3 Average Overweight (x) . | . . . . Largest Inventory Capacity 8 | 8 8 8 8 Average Capacity 7 | 6 8 8 8 Most Carried 8 | 4 7 8 8 Average Carried 6 | 1 5 7 7 Final Capacity 8 | 8 8 8 8 Final Carried 8 | 2 7 8 3 Class Distribution -------------------- 100% | Mutant Dominant Class ---------------- Mutant | -10/Materials Mutant | -9/Materials Mutant | -8/Materials Resources | -11 -10 -9 -8 ----------- Run | Scr Mat Mat Mat Matter Collected 772 | 207 63 157 345 Remotely . | . . . . Salvage Created 1374 | . . 511 863 Parts 87 | . . 31 56 Haulers Intercepted 2 | . . . 2 Recyclers Shooed . | . . . . Parts Field Recycled . | . . . . Retrieved Matter . | . . . . Parts Self-Destructed . | . . . . Prevented . | . . . . Kills | -11 -10 -9 -8 ------- Run | Scr Mat Mat Mat Combat Hostiles Destroyed 38 | . . 14 24 Guns 5 | . . 5 . Cannons 13 | . . 6 7 AOE 20 | . . 3 17 Classes Destroyed 11 | . . 4 7 Worker 3 | . . . 3 Builder 3 | . . . 3 Tunneler 1 | . . . 1 Hauler 2 | . . . 2 Recycler 2 | . . . 2 Watcher 2 | . . 1 1 Swarmer 10 | . . 3 7 Grunt 19 | . . 8 11 Sentry 5 | . . 3 2 Specialist 2 | . . . 2 Hunter 2 | . . . 2 Best Kill Streak 14 | . . 3 14 Combat Bots Only 10 | . . 3 10 Max Kills in Single Turn 4 | . . 2 4 Gunslinging . | . . . . Exploded 4 | . . 2 4 Melee . | . . . . Uniques/NPCs Destroyed . | . . . . Combat | -11 -10 -9 -8 -------- Run | Scr Mat Mat Mat Damage Taken 2957 | . 26 478 2453 Core 688 | . . 104 584 Absorbed by Shields 261 | . . . 261 Redirected to Shielding 51 | . . . 51 Core Remaining (%) 91 | 100 100 74 . Volleys Fired 86 | . 1 36 49 Largest 2 | . 2 2 2 Hottest 78 | . 60 75 78 Shots Fired 165 | . 2 72 91 Gun 63 | . 2 51 10 Cannon 76 | . . 21 55 Launcher 26 | . . . 26 Special . | . . . . Kinetic 92 | . 1 36 55 Thermal . | . . . . Explosive 26 | . . . 26 Electromagnetic 47 | . 1 36 10 Robot Hit Streak 14 | . . 14 6 Robot Miss Streak 4 | . 2 2 4 Penetration Max . | . . . . Secondary Targets . | . . . . Shots Hit Robots 99 | . . 51 48 Core Hits 95 | . . 23 72 Critical Kills . | . . . . Critical Parts Destroyed . | . . . . Critical Strikes 6 | . . 3 3 Blast 3 | . . 1 2 Corrupt 3 | . . 2 1 Melee Attacks . | . . . . Impact . | . . . . Slashing . | . . . . Piercing . | . . . . Sneak Attacks . | . . . . Combat Hostiles . | . . . . Follow-up Attacks . | . . . . Damage Inflicted 4011 | . . 873 3138 Guns 508 | . . 439 69 Cannons 850 | . . 303 547 Explosions 2653 | . . 131 2522 Melee . | . . . . Ramming . | . . . . Kinetic 948 | . . 401 547 Thermal 288 | . . 131 157 Explosive 2365 | . . . 2365 Electromagnetic 410 | . . 341 69 Impact . | . . . . Slashing . | . . . . Piercing . | . . . . Highest Corruption 1 | . . . 1 Average Corruption 1 | . . . 1 Corruption Purged . | . . . . Corruption Blocked . | . . . . Effects 3 | . . . 3 Matter Fused 1 | . . . 1 Data Loss (minor) 1 | . . . 1 Misfires 1 | . . . 1 Overload Shots . | . . . . Overflow Damage 62 | . . . 62 Projectiles 1 | . . . 1 Explosions 61 | . . . 61 Melee . | . . . . Knockbacks 17 | . . 7 10 Impact . | . . . . Kinetic 14 | . . 6 8 Secondary 3 | . . 1 2 Self-Inflicted Damage 276 | . . 85 191 Shots 11 | . . 3 8 Rammed . | . . . . Targets Rammed . | . . . . Kicked . | . . . . Crushed . | . . . . Highest Temperature 309 | . . . 309 Average Temperature 137 | . . . 137 Received Heat Transfer 863 | . . 126 737 Siege Activations . | . . . . Robots Corrupted . | . . . . Combat Hostiles . | . . . . Parts Fried . | . . . . Impact Corruptions . | . . . . Robots Melted . | . . . . Combat Hostiles . | . . . . Parts Melted . | . . . . Heat Transferred 400 | . . 200 200 Parts Sabotaged . | . . . . Parts Stolen . | . . . . Parts Stripped . | . . . . Power Chain Reactions 5 | . . 3 2 Missiles Intercepted . | . . . . Alert | -11 -10 -9 -8 ------- Run | Scr Mat Mat Mat Peak Influence 445 | . 34 292 445 Initial 122 | . . 14 122 Average 137 | . 9 129 217 Maximum Alert Level 2 | . . 1 2 Low Security (%) 72 | 100 100 73 56 Level 1 24 | . . 26 35 Level 2 3 | . . . 8 Level 3 . | . . . . Level 4 . | . . . . Level 5 . | . . . . High Security . | . . . . Max Security . | . . . . Squads Dispatched 9 | . 1 3 5 Investigation 4 | . . 2 2 Extermination . | . . . . Reinforcement 5 | . 1 1 3 Assault . | . . . . Garrison . | . . . . Intercept . | . . . . Searches Triggered . | . . . . Construction Impeded 1 | . . . 1 Haulers Reinforced . | . . . . Active Scanning Responses . | . . . . Cargo Convoy Interrupts . | . . . . Stealth | -11 -10 -9 -8 --------- Run | Scr Mat Mat Mat Distress Signals 5 | . . . 5 Communications Jammed . | . . . . Distress Signals . | . . . . Times Spotted 58 | . 2 20 36 Peak Tracking Total 10 | . 1 3 10 Tactical Retreats 1 | . . . 1 Traps | -11 -10 -9 -8 ------- Run | Scr Mat Mat Mat Traps Triggered 3 | . 1 1 1 Indirectly . | . . . . Trap Hack Attempts . | . . . . Triggered . | . . . . Disarmed . | . . . . Reprogrammed . | . . . . Reused . | . . . . Traps Extracted . | . . . . Installed . | . . . . Triggered . | . . . . Machines | -11 -10 -9 -8 ---------- Run | Scr Mat Mat Mat Machines Disabled 3 | . . 2 1 Max in Single Turn 1 | . . 1 1 Machines Sabotaged . | . . . . Garrisons Compromised . | . . . . Overloaded Fab Kills . | . . . . Hacking | -11 -10 -9 -8 --------- Run | Scr Mat Mat Mat Machines Accessed 7 | . 2 3 2 Terminals 4 | . 1 2 1 Fabricators . | . . . . Repair Stations . | . . . . Recycling Units 1 | . 1 . . Scanalyzers 2 | . . 1 1 Garrison Access . | . . . . Total Hacks 30 | . 4 21 5 Successful 21 | . 2 16 3 Failed 9 | . 2 5 2 Catastrophic 1 | . . 1 . Database Lockouts . | . . . . Manual 1 | . . 1 . Terminals 11 | . 3 6 2 Fabricators . | . . . . Repair Stations . | . . . . Recycling Units 1 | . 1 . . Scanalyzers 18 | . . 15 3 Garrison Access . | . . . . Terminal Hacks 5 | . 1 2 2 Prototype ID Bank 1 | . . . 1 Emergency Access Points 1 | . 1 . . Unreport Threat 1 | . . . 1 Dispatch Records 1 | . . 1 . Investigation Status 1 | . . 1 . Fabricator Hacks . | . . . . Repair Station Hacks . | . . . . Recycling Unit Hacks 1 | . 1 . . Report Inventory 1 | . 1 . . Scanalyzer 15 | . . 14 1 Insert Component 7 | . . 6 1 Analyze 8 | . . 8 . Garrison Access Hacks . | . . . . Unauthorized Hacks . | . . . . Terminals . | . . . . Fabricators . | . . . . Repair Stations . | . . . . Recycling Units . | . . . . Scanalyzers . | . . . . Garrison Access . | . . . . Data Cores Recovered . | . . . . Used . | . . . . Hacking Detections 5 | . 1 3 1 Full Trace Events 4 | . . 3 1 Feedback Events . | . . . . Feedback Blocked . | . . . . Robot Schematics Acquired . | . . . . Robots Built . | . . . . Authchips . | . . . . Time . | . . . . Total Robot Build Rating . | . . . . Part Schematics Acquired 5 | . . 5 . Parts Built . | . . . . Authchips . | . . . . Time . | . . . . Total Part Build Rating . | . . . . Parts Repaired . | . . . . Time . | . . . . Parts Recycled . | . . . . Recycled Matter . | . . . . Retrieved Matter . | . . . . Retrieved Components . | . . . . Parts Scanalyzed 7 | . . 6 1 Part Schematics Acquired 5 | . . 5 . Parts Damaged 1 | . . 1 . Bothacking | -11 -10 -9 -8 ------------ Run | Scr Mat Mat Mat Used RIF Installer . | . . . . Robots Hacked . | . . . . Non-combat . | . . . . Combat . | . . . . Robot Hacks Applied . | . . . . Relay Couplers Released . | . . . . Fabnet Peak Effective % . | . . . . Robots Rewired . | . . . . Allies Hacked . | . . . . Hacks Repelled . | . . . . Allies | -11 -10 -9 -8 -------- Run | Scr Mat Mat Mat Total Allies . | . . . . Largest Group . | . . . . Highest-Rated Group . | . . . . Highest-Rated Ally . | . . . . Total Orders . | . . . . Ally Attacks . | . . . . Total Damage . | . . . . Kills . | . . . . Allies Corrupted . | . . . . Allies Melted . | . . . . Intel | -11 -10 -9 -8 ------- Run | Scr Mat Mat Mat Robot Analysis Total . | . . . . Derelict Logs Recovered . | . . . . Drone Launches . | . . . . Drone Recoveries . | . . . . Exploration | -11 -10 -9 -8 ------------- Run | Scr Mat Mat Mat Turns Passed 1745 | 77 265 766 637 Spaces Moved 819 | 45 160 374 240 Core 10 | 7 . . 3 Treads 722 | 38 160 374 150 Legs 87 | . . . 87 Wheels . | . . . . Hover . | . . . . Flight . | . . . . Fastest Speed 50 | 50 160 160 120 Average Speed 164 | 142 160 160 177 Slowest Speed 260 | 160 160 160 260 Overloaded Moves . | . . . . Propulsion Burnouts . | . . . . Robots Hopped . | . . . . Cave-ins Triggered . | . . . . Exploration Rate (%) 25 | 4 41 26 30 Regions Visited 3 Branch Regions . Pre-discovered Areas . | . . . . Known Exits Taken . | . . . . Unknown Exits Taken 3 | 1 1 1 . Scrap Searched . | . . . . Spaces Dug . | . . . . Terrain Destroyed 149 | . . 9 140 Melee . | . . . . Projectile . | . . . . AOE 149 | . . 9 140 Terrain Rammed . | . . . . Walls Destroyed . | . . . . Machines Disabled . | . . . . Actions | -11 -10 -9 -8 --------- Run | Scr Mat Mat Mat Total 1059 | 58 167 471 363 Wait 81 | . . 44 37 Move 816 | 44 159 373 240 Hop . | . . . . Pick Up 37 | 8 6 9 14 Fast Attach . | . . . . Attach 26 | 6 1 4 15 Detach . | . . . . Swap 4 | . . 1 3 Drop 9 | . . 4 5 Fire 86 | . 1 36 49 Melee . | . . . . Ram . | . . . . Kick . | . . . . Crush . | . . . . Escape Stasis . | . . . . Rewire . | . . . . Trap . | . . . . Miscellaneous . | . . . . Route ------- -11/Scrapyard -10/Materials -9/Materials -8/Materials (discovered 1 exit: [*Fac]) History --------- Turn | Location | Event 2 | -11/Scrapyard | Discovered new exit (range 16) 78 | -11/Scrapyard | Entered Materials 313 | -10/Materials | Build established: Mutant 319 | -10/Materials | Discovered new exit (range 15) 343 | -10/Materials | Entered another Materials area 343 | -9/Materials | Evolved 2 slots: Power x1, Utility x1 1070 | -9/Materials | Discovered new exit (range 5) 1109 | -9/Materials | Entered another Materials area 1109 | -8/Materials | Evolved 2 slots: Power x1, Utility x1 1378 | -8/Materials | Lost 3 parts (1n1u1w) 1506 | -8/Materials | Lost 3 parts (2p1n) 1667 | -8/Materials | Core integrity fell below 50% 1692 | -8/Materials | Destroyed 10 combat bots 1713 | -8/Materials | Core integrity fell below 20% 1727 | -8/Materials | Discovered new exit (range 16) 1746 | -8/Materials | Destroyed by H-61 Shepherd with Heavy Assault Cannon Last Messages --------------- Critical hit (Burn: +37). K-01 Serf collects debris. EXIT=FOUND K-01 Serf collects debris. Acquired 71 matter. K-01 Serf collects debris. G-47 Trooper destroyed. K-01 Serf destroyed. Hvy. Missile Launcher destroyed. Destroyed Hvy. Missile Launcher. K-01 Serf destroyed. Destroyed Particle Gun. Arm. Treads destroyed. R-06 Scavenger collects Wheel. Acquired 8 matter. G-47 Trooper destroyed. Destroyed Imp. Hover Unit. R-06 Scavenger collects Med. Storage Unit. W-25 Informer destroyed. R-06 Scavenger destroyed. Map ----- +----------------------------------------------------+ | ?????????????????????????????????????????????????? | | ?????????????????????????????????????????????????? | | ?????????????????????????????????????????????????? | | ?????????????????????????????????????????????????? | | ?????????????????????????????????????????????????? | | ?????????????????????????????????????????????????? | | ?????????????????????????????????????????????????? | | ?????????????????????????????????????????????????? | | ?????????????????????????????????????????????????? | | ?????????????????????????????????????????????????? | | ?????????????????????????????????????????????????? | | ?????????????????????????##??????????????????????? | | ??? ???????????????????? ??????????????????????? | | ???+"###????????????????? "??????????????????????? | | ?? % = ???????########## "??????????????????????? | | ??"" ???????# # "??????????????????????? | | """ ???????# """ # #??????????????????? | | """ ???????# " " # """ #??????????????????? | | ? #??????#! """ #??????????????????? | | """ !#???#??# """ #??????????????????? | | """ ??? # ] #??????????????????? | | """ # ]* +??????????????????? | | =] #??????????????????? | | ### = = #??????????????????? | | *= * ##### #??????????????? | | *=== =* @ % #??????????? | | = ==[ H g < #??????????? | | #### =! g #??????????? | | ???# %= [ # #######+######??????????? | | ???## = ##???????????????????????? | | ???###### ! #????????????????????????? | | ????????### # ** #????????????????????????? | | ??????????# ## *! #????????????????????????? | | ??????????# ## ##????????????????????????? | | ??????????# ## #?????????????????????????? | | ??????????# ## #?????????????????????????? | | ??????????# # #?????????????????????????? | | ??????????# ## #?????????????????????????? | | #####?????# ## ! #?????????????????????????? | | * !!#?????# ## #?????????????????????????? | | *!!#####?# ##########?????????????????????????? | | ### #??????????????????????????????????? | | !# ## #??????????????????????????????????? | | = #??????????????????????????????????? | | [ #??????????????????????????????????? | | %[ #??????????????????????????????????? | | # # ########??????????????????????????????????? | | "" #???????????????????????????????????????? | | ## "T" #???????????????????????????????????????? | | ?## #???????????????????????????????????????? | +----------------------------------------------------+ Best States ------------- Heat Dissipation 53 Energy Generation 38 Energy Capacity 870 Matter Stores 300 Matter Capacity 300 Sight Range 16 Terrain Scan Density 10 Weapon Shielding 33 Evasion (%) 50 Recoil Reduction 2 Item Schematics ----------------- Lgt. Treads | -9/Materials | Scanalyzed Grenade Launcher | -9/Materials | Scanalyzed Weapon Shielding | -9/Materials | Scanalyzed EM Pulse Gun | -9/Materials | Scanalyzed Ion Engine | -9/Materials | Scanalyzed Robot Schematics ------------------ None Fabricated ------------ Nothing Alien Tech Used ----------------- None Achievements -------------- None Challenges ------------ None Game ------ Seed GravitonArcBoomstick Manual? 0 Play Time 00:31:37 Cumulative 9.8 hours Start 2022.08.29 @ 21:47:20 End 2022.08.29 @ 22:18:34 Sessions 1 Manual Loads 0 Difficulty Rogue Special Mode None Game No. 8 Rogue 8 Adventurer 0 Explorer 0 Win Type - Total 0 Types 0/0/0/0/0/0/0/0/0 Lore% 3 Gallery% 14 Achievement% 12 Wizard Run 0 Options --------- ASCII 0 Keyboard 0 Movement Mouse Keybinds 0 Fullscreen 1 Font 18/TerminusBold Map View 76x50 Tactical HUD 0 Map Filters NONE Filters NONE Steam 0 RUN: 6e7eb6b4-1638-4f7d-8bc6-b221f24b6921